Cogmind - Beta 16.1 @@@ ROGUE MODE // 2026.03.25 @ 01:31:32 Player: Sen Result: Destroyed by G-47 Trooper with Particle Gun Performance ------------- Evolutions (0) 0 Regions Visited (2) 400 Robots Destroyed (17) 85 Value Destroyed (334) 334 Prototype IDs (2) 40 Alien Tech Used (0) 0 Bonus (0) 0 TOTAL SCORE: 859 Bonus ------- None Cogmind --------- Core Integrity 0/250 Matter 270/300 Energy 250/250 System Corruption 0% Temperature Cool (27) Movement Walking (190) Ox1 Location -10/Mines Parts ------- > --- POWER (1) -------- Ion Engine > --- PROPULSION (2) --- Aluminum Leg Aluminum Leg > --- UTILITY (2) ------ Large Storage Unit Signal Interpreter > --- WEAPON (2) ------- Assault Rifle Light Assault Rifle > --- INVENTORY (15) --- Light Ion Engine Aluminum Leg Heat Sink Improved Heat Sink Medium Storage Unit Large Matter Pod (150) Sensor Array Improved Terrain Scanner Mining Laser Peak State ------------ > --- POWER ------------ Ion Engine > --- PROPULSION ------- Aluminum Leg Aluminum Leg > --- UTILITY ---------- Large Storage Unit Signal Interpreter > --- WEAPON ----------- Assault Rifle Rocket Launcher > --- INVENTORY -------- Ion Engine Light Ion Engine Aluminum Leg Aluminum Leg Aluminum Leg Wheel Heat Sink Improved Heat Sink Medium Storage Unit Large Matter Pod Sensor Array Improved Terrain Scanner Assault Rifle Mining Laser [Rating: 9] Favorites ----------- Power Ion Engine Engine Ion Engine Propulsion Aluminum Leg Leg Aluminum Leg Wheel Wheel Utility Large Storage Unit Storage Large Storage Unit Processor Signal Interpreter Weapon Assault Rifle Energy Gun Small Laser Ballistic Gun Assault Rifle Launcher Rocket Launcher Special Weapon Mining Laser Build | -11 -10 -10 ------- Run | Yrd Mat Min Slots Evolved . | . . . Power . | . . . Propulsion . | . . . Utility . | . . . Weapon . | . . . Parts Attached 17 | 6 5 6 Power 2 | 1 . 1 Engine 2 | 1 . 1 Core . | . . . Reactor . | . . . Propulsion 5 | 2 . 3 Treads . | . . . Leg 4 | 2 . 2 Wheel 1 | . . 1 Hover . | . . . Flight . | . . . Utility 4 | 1 3 . Device . | . . . Storage 3 | 1 2 . Processor 1 | . 1 . Hackware . | . . . Protection . | . . . Artifact . | . . . Weapon 6 | 2 2 2 Energy Gun 1 | . 1 . Energy Cannon . | . . . Ballistic Gun 3 | 2 . 1 Ballistic Cannon . | . . . Launcher 1 | . . 1 Special Weapon 1 | . 1 . Impact Weapon . | . . . Slashing Weapon . | . . . Piercing Weapon . | . . . Special Melee Weapon . | . . . Unidentified Prototypes . | . . . Parts Lost 7 | . 1 6 Power 1 | . . 1 Propulsion 3 | . . 3 Utility . | . . . Weapon 3 | . 1 2 Highest Loss Streak 5 | . 1 5 To Critical Strikes . | . . . Average Backups 10 | 2 10 10 Power 1 | . 1 1 Propulsion 2 | . 3 1 Utility 4 | . 3 6 Weapon 1 | 1 1 1 Tool/Special . | . . . Unused Backups 7 | . . 7 Power 1 | . . 1 Propulsion 1 | . . 1 Utility 5 | . . 5 Weapon . | . . . Tool/Special . | . . . Average Slot Usage (%) 92 | . 90 97 Engine 13 | . 14 13 Leg 26 | . 27 25 Storage 14 | . 14 14 Processor 8 | . 5 14 Energy Gun 4 | . 7 . Ballistic Gun 21 | . 19 24 Peak Build Rating 9 | 6 8 9 Average Rating 7 | 5 7 7 On Entrance 4 | . 6 8 Avg Prop Armor Cover (%) 9 | . . 9 Naked Turns . | . . . Heaviest Build 31 | 14 29 31 Greatest Support 20 | 20 20 20 Greatest Overweight (x) 6 | 1 1 6 Average Overweight (x) . | . . 1 Largest Inventory Capacity 15 | 8 15 15 Average Capacity 13 | 7 13 15 Most Carried 14 | 5 14 14 Average Carried 10 | 3 10 10 Final Capacity 15 | 8 15 15 Final Carried 13 | 5 13 9 Class Distribution -------------------- 78% | Mutant 21% | Scavenger-Mutant Dominant Class ---------------- Mutant | -10/Materials Scavenger-Mutant | -10/Mines Resources | -11 -10 -10 ----------- Run | Yrd Mat Min Matter Collected 756 | 203 448 105 Remotely . | . . . Salvage Created 530 | 25 469 36 Parts 44 | 4 37 3 Haulers Intercepted 1 | . 1 . Recyclers Shooed 1 | . 1 . Parts Field Recycled . | . . . Retrieved Matter . | . . . Parts Self-Destructed . | . . . Prevented . | . . . Parts Restored . | . . . Kills | -11 -10 -10 ------- Run | Yrd Mat Min Combat Hostiles Destroyed 12 | . 10 2 Guns 12 | . 10 2 Classes Destroyed 7 | 1 6 . Tunneler 1 | 1 . . Hauler 1 | . 1 . Recycler 1 | . 1 . Operator 1 | . 1 . Watcher 1 | . 1 . Swarmer 6 | . 4 2 Grunt 6 | . 6 . Best Kill Streak 4 | 1 4 1 Combat Bots Only 4 | . 4 1 Max Kills in Single Turn 2 | 1 2 1 Gunslinging 1 | . 1 . Exploded . | . . . Melee . | . . . Uniques/NPCs Destroyed . | . . . Combat | -11 -10 -10 -------- Run | Yrd Mat Min Hostile Shots Fired 111 | . 57 54 Missed 41 | . 25 16 Hits 70 | . 32 38 Melee 12 | . . 12 Projectile 58 | . 32 26 Critical Strikes 3 | . . 3 Part Disruptions 2 | . . 2 Damage Taken 1034 | . 337 697 Core 263 | . 37 226 Absorbed by Shields . | . . . Regen/Repaired (Parts) 78 | . 78 . Core Remaining (%) 100 | 100 . . Volleys Fired 47 | 2 39 6 Largest 2 | 2 2 2 Hottest 120 | 40 120 53 Shots Fired 91 | 4 78 9 Gun 88 | 4 76 8 Cannon . | . . . Launcher 1 | . . 1 Special 2 | . 2 . Kinetic 73 | 4 61 8 Thermal 17 | . 17 . Explosive 1 | . . 1 Electromagnetic . | . . . Robot Hit Streak 8 | 1 8 4 Robot Miss Streak 4 | 2 4 3 Penetration Max . | . . . Secondary Targets 2 | . 2 . Max Gunslinging Chain 1 | . 1 . Shots Hit Robots 53 | 1 46 6 Core Hits 32 | 1 23 8 Critical Kills 1 | . 1 . Critical Parts Destroyed 1 | . . 1 Critical Strikes 2 | . 1 1 Destroy 2 | . 1 1 Melee Attacks . | . . . Impact . | . . . Slashing . | . . . Piercing . | . . . Sneak Attacks . | . . . Combat Hostiles . | . . . Follow-up Attacks . | . . . Damage Inflicted 840 | 12 566 262 Guns 646 | 12 566 68 Cannons . | . . . Explosions 194 | . . 194 Melee . | . . . Ramming . | . . . Kinetic 510 | 12 430 68 Thermal 136 | . 136 . Explosive 194 | . . 194 Electromagnetic . | . . . Impact . | . . . Slashing . | . . . Piercing . | . . . Highest Corruption . | . . . Average Corruption . | . . . Corruption Purged . | . . . Corruption Blocked . | . . . Overload Shots . | . . . Overflow Damage 20 | . . 20 Projectiles . | . . . Explosions 20 | . . 20 Melee . | . . . Knockbacks . | . . . Impact . | . . . Kinetic . | . . . Secondary . | . . . Self-Inflicted Damage 6 | . . 6 Shots 1 | . . 1 Rammed . | . . . Targets Rammed . | . . . Kicked . | . . . Crushed . | . . . Highest Temperature 45 | . 45 35 Average Temperature 17 | . 19 11 Received Heat Transfer 625 | . 132 493 Siege Activations . | . . . Martial Activations . | . . . Shielding Activations . | . . . Robots Disrupted . | . . . Combat Hostiles . | . . . Robots Corrupted . | . . . Combat Hostiles . | . . . Parts Fried . | . . . Impact Corruptions . | . . . Robots Melted . | . . . Combat Hostiles . | . . . Parts Melted . | . . . Heat Transferred 300 | . 300 . Parts Sabotaged . | . . . Parts Stolen . | . . . Parts Stripped . | . . . Power Chain Reactions . | . . . Alert | -11 -10 -10 ------- Run | Yrd Mat Min Maximum Alert Level . | . . . Low Security (%) 100 | 100 100 100 Level 1 . | . . . Level 2 . | . . . Level 3 . | . . . Level 4 . | . . . Level 5 . | . . . High Security . | . . . Max Security . | . . . Peak Influence 100 | . 100 25 Initial 18 | . . 18 Average 24 | . 39 3 Influence Increases 399 | 5 329 65 Destroy 0b10 Robot/C 240 | . 200 40 Destroy 0b10 Robot/NC 25 | 5 20 . Destroy Leader 44 | . 44 . Successful Hack 32 | . 32 . Disable Machine 15 | . 15 . Destroy Structure 13 | . 3 10 Lose Combat Pursuer 30 | . 15 15 Influence Decreases 379 | 5 280 94 Entered New Map 31 | . . 31 Time Decay 333 | 5 275 53 Lost Part 15 | . 5 10 Squads Dispatched 2 | . 2 . Investigation 1 | . 1 . Extermination . | . . . Reinforcement 1 | . 1 . Assault . | . . . Garrison . | . . . Intercept . | . . . Searches Triggered . | . . . Construction Impeded . | . . . Haulers Reinforced . | . . . Active Scanning Responses . | . . . Cargo Convoy Interrupts . | . . . Stealth | -11 -10 -10 --------- Run | Yrd Mat Min Distress Signals 1 | . 1 . Communications Jammed . | . . . Distress Signals . | . . . Times Spotted 39 | . 23 16 Peak Tracking Total 8 | . 7 8 Tactical Retreats 5 | . 1 4 Traps | -11 -10 -10 ------- Run | Yrd Mat Min Traps Triggered . | . . . Indirectly . | . . . Trap Hack Attempts . | . . . Triggered . | . . . Disarmed . | . . . Reprogrammed . | . . . Reused 1 | . . 1 Traps Extracted . | . . . Installed 1 | . . 1 Triggered . | . . . Machines | -11 -10 -10 ---------- Run | Yrd Mat Min Machines Disabled 2 | . 2 . Max in Single Turn 1 | . 1 . Machines Repaired . | . . . Machines Dismantled . | . . . Machines Sabotaged . | . . . Overloaded Fab Kills . | . . . Hacking | -11 -10 -10 --------- Run | Yrd Mat Min Machines Accessed 8 | . 8 . Terminals 6 | . 6 . Fabricators . | . . . Repair Stations 1 | . 1 . Recycling Units 1 | . 1 . Scanalyzers . | . . . Garrison Access . | . . . Total Hacks 25 | . 25 . Successful 10 | . 10 . Failed 15 | . 15 . Catastrophic 3 | . 3 . Database Lockouts . | . . . Manual 15 | . 15 . Terminals 19 | . 19 . Fabricators . | . . . Repair Stations 4 | . 4 . Recycling Units 2 | . 2 . Scanalyzers . | . . . Garrison Access . | . . . Terminal Hacks 5 | . 5 . Prototype ID Bank 1 | . 1 . Terminal Index 1 | . 1 . Locate Traps 1 | . 1 . Zone Layout 2 | . 2 . Fabricator Hacks . | . . . Repair Station Hacks 2 | . 2 . Scan Component 1 | . 1 . Repair 1 | . 1 . Recycling Unit Hacks 1 | . 1 . Report Inventory 1 | . 1 . Scanalyzer . | . . . Garrison Access Hacks . | . . . Unauthorized Hacks 2 | . 2 . Terminals 2 | . 2 . Botnet 1 | . 1 . Operators 1 | . 1 . Fabricators . | . . . Repair Stations . | . . . Recycling Units . | . . . Scanalyzers . | . . . Garrison Access . | . . . Data Cores Recovered . | . . . Used . | . . . Hacking Detections 7 | . 7 . Full Trace Events 2 | . 2 . Feedback Events . | . . . Feedback Blocked . | . . . Robot Schematics Acquired . | . . . Robots Built . | . . . Authchips . | . . . Time . | . . . Total Robot Build Rating . | . . . Part Schematics Acquired . | . . . Parts Built . | . . . Authchips . | . . . Time . | . . . Total Part Build Rating . | . . . Part Studies Acquired . | . . . Parts Repaired 1 | . 1 . Time 26 | . 26 . Parts Recycled . | . . . Recycled Matter . | . . . Retrieved Matter . | . . . Retrieved Components . | . . . Parts Scanalyzed . | . . . Part Schematics Acquired . | . . . Parts Damaged . | . . . Bothacking | -11 -10 -10 ------------ Run | Yrd Mat Min Used RIF Installer . | . . . Robots Hacked . | . . . Non-combat . | . . . Combat . | . . . Robot Hacks Applied . | . . . Relay Couplers Released . | . . . Fabnet Peak Effective % . | . . . Robots Rewired . | . . . Allies Hacked . | . . . Hacks Repelled . | . . . Allies | -11 -10 -10 -------- Run | Yrd Mat Min Total Allies . | . . . Largest Group . | . . . Highest-Rated Group . | . . . Highest-Rated Ally . | . . . Total Orders . | . . . Ally Attacks . | . . . Total Damage . | . . . Kills . | . . . Allies Corrupted . | . . . Allies Melted . | . . . Intel | -11 -10 -10 ------- Run | Yrd Mat Min Active Infowar (turns) . | . . . Robot Analysis Total . | . . . Derelict Logs Recovered 1 | . . 1 Drone Launches . | . . . Drone Recoveries . | . . . Exploration | -11 -10 -10 ------------- Run | Yrd Mat Min Turns Passed 1285 | 83 774 428 Spaces Moved 628 | 52 346 230 Core 6 | 5 . 1 Treads . | . . . Legs 578 | 47 346 185 Wheels 44 | . . 44 Hover . | . . . Flight . | . . . Fastest Speed 50 | 50 120 110 Average Speed 168 | 122 170 175 Slowest Speed 350 | 190 190 350 Overloaded Moves . | . . . Propulsion Burnouts . | . . . Robots Hopped . | . . . Potential Cave-ins . | . . . Cave-ins Triggered . | . . . Exploration Rate (%) 34 | 5 60 37 Regions Visited 2 Branch Regions 1 Pre-discovered Areas . | . . . Known Exits Taken 1 | . 1 . Unknown Exits Taken 1 | 1 . . Scrap Searched 1 | . . 1 Spaces Dug . | . . . Terrain Destroyed 10 | . . 10 Melee . | . . . Projectile . | . . . AOE 10 | . . 10 Terrain Rammed . | . . . Walls Destroyed . | . . . Machines Disabled . | . . . Actions | -11 -10 -10 --------- Run | Yrd Mat Min Total 756 | 64 447 245 Wait 43 | . 43 . Move 626 | 51 345 230 Hop . | . . . Pick Up 14 | 5 8 1 Fast Attach 11 | 6 4 1 Attach 7 | . 2 5 Detach 2 | . 2 . Swap 4 | . 3 1 Drop 1 | . 1 . Fire 47 | 2 39 6 Melee . | . . . Ram . | . . . Kick . | . . . Crush . | . . . Escape Stasis . | . . . Rewire . | . . . Trap 1 | . . 1 Miscellaneous . | . . . Route ------- -11/Scrapyard -10/Materials (discovered 2 exits: [*Mat] / *Min) -10/Mines History --------- Turn | Location | Event 3 | -11/Scrapyard | Discovered new exit (range 15) 84 | -11/Scrapyard | Entered Materials 189 | -10/Materials | Discovered new exit (range 16) 316 | -10/Materials | Build established: Mutant 371 | -10/Materials | Discovered new exit (range 16) 780 | -10/Materials | Identified exit to Mines 839 | -10/Materials | Repaired Aluminum Leg 858 | -10/Materials | Entered Mines 865 | -10/Mines | Assembled infested the area 926 | -10/Mines | Received a Rocket Launcher from a helpful Derelict 969 | -10/Mines | Learned Materials machine intel 982 | -10/Mines | Core integrity fell below 50% 993 | -10/Mines | Found a hidden stash of uninstalled traps 1002 | -10/Mines | Core integrity fell below 20% 1032 | -10/Mines | Lost 5 parts (1p2n2w) 1286 | -10/Mines | Destroyed by G-47 Trooper with Particle Gun Last Messages --------------- 00996_ Aluminum Leg destroyed. 00997_ as-69995 triggered Explosive Trap. 00997_ An explosion rips through the floor. 00998_ U-05 Engineer lays Concrete. 00999_ as-69995 destroyed. 01000_ U-05 Engineer lays Concrete. 01001_ Assault Rifle destroyed. 01001_ Wheel destroyed. 01002_ as-50065 destroyed. 01004_ Critical hit (Burn: +80). 01013_ as-20689 destroyed. 01025_ S-10 Pest suffers critical hit (Destroy). 01025_ Destroyed Flight Unit. 01027_ S-10 Pest destroyed. 01029_ Acquired 20 matter. 01033_ Acquired Lgt. Assault Rifle. 01046_ Acquired 12 matter. 01211_ Acquired 5 matter. 01281_ S-10 Pest destroyed. 01286_ Critical hit (Burn: +37). Map ----- +----------------------------------------------------+ | | | | | | | | | | | | | | | | | | | | | ?????????????????????????????????????????????????? | | ?????????????????????????????????????????????????? | | ?????????????????????????????????????????????????? | | ?????????????????????????????????????????????????? | | ?????????????????????????????????????????????????? | | ?????????????????????????????????????????????????? | | ?????????????????????????????????????????????????? | | ?????????????????????????????????????????????????? | | ????????????????????#???????#####????????????????? | | ????????????????????# ?????## ##???????????????? | | ????????????????????? ?????# ##??????????????? | | ?????????????????????# ????# #??????????????? | | ?????????????????????# ????# #??????????????? | | ?????????????????????# ???## ##??????????????? | | ?????????????????# ###g ##### ## #???????????????? | | ?????????????????# =% g@ ## #???????????????? | | ?????????????????############### #???????????????? | | ??????????????????????????????## #???????????????? | | ??????????????????????????????# #?????????????### | | ??????????????????????????????# ##?????????????# | | ??????????????????????????????# #??????????????# " | | ??????????????????????????????# #?????????###### " | | ??????????????????????????????# #?????????# " | | ??????????????????????????????# #?????????# #### | | ??????????????????????????????# #?????????# #??# | | ??????????????????????????????# #?????????# #??### | | ??????????????????????????????# #?????????# #????? | | ??????????????????????????????# #?????????# #????? | | ??????????????????????????????# #?????????# ###### | | ??????????????????????????????# #?????????# # | | ??????????????????????????????# #?????????# #### # | | ??????????????????????????????# #?????????# #??# # | | ??????????????????????????????# #?????????# #?## | | ??????????????????????????????# #?????????# #?# | | ?????????????????????????????## ##????????# #?# | | ?????????????????????????????## %##???##### #?### | | ???????????????????????????###& #???# #???# | | ???????????????????????????## ##### #####??## | | ???????????????????????????## &% #?????## | | ???????????????????????????# #######?????# | +----------------------------------------------------+ Best States ------------- Heat Dissipation 25 Energy Generation 10 Energy Capacity 250 Matter Stores 300 Matter Capacity 300 Sight Range 16 Terrain Scan Density 10 Evasion (%) 55 Item Schematics ----------------- None Robot Schematics ------------------ None Fabricated ------------ Nothing Repaired ---------- Aluminum Leg | 13% | -10/Materials Studied --------- None Alien Tech Used ----------------- None Achievements -------------- None Challenges ------------ None Game ------ Seed MassBackupTube Manual? 0 Play Time 00:13:55 Cumulative 162.8 hours Start 2026.03.25 @ 01:20:00 End 2026.03.25 @ 01:31:32 Sessions 1 Manual Loads 0 Difficulty Rogue Special Mode None Game No. 125 Rogue 125 Adventurer 0 Explorer 0 Win Type - Total 0 Types 0/0/0/0/0/0/0/0/0/0 Lore% 55 Gallery% 50 Achievement% 39 Wizard Run 0 Options --------- Layout 1 ASCII 1 Keyboard 1 Movement Numpad Keybinds 0 Fullscreen 1 Font 24/Smallcaps Map View 50x35 Zoom Use 0% Tactical HUD 1 Map Filters NONE Filters NONE Steam 1 RUN: fc77119c-24e9-4ea2-982a-1ec961ead0fa